bitfinex/quotes_ETHUSD_20240610
["timestamp","ask_amount","ask_price","bid_price","bid_amount"]
[1717986446871,0.10574623,3695.4,3694.9,2.195405]
[1717986447094,0.791,3695.7,3694.9,2.195405]
[1717986447380,0.791,3695.7,3694.9,1.3532]
[1717986447569,0.10584578,3695.6,3694.9,1.3532]
[1717986449195,0.791,3695.7,3694.9,1.3532]
[1717986449350,0.10584578,3695.6,3694.9,1.3532]
[1717986452088,0.791,3695.5,3694.9,1.3532]
[1717986452383,0.10579068,3695.4,3694.9,1.3532]
[1717986452561,0.89679068,3695.4,3694.9,1.3532]
[1717986457063,0.89679068,3695.4,3694.6,4.35331]
[1717986457578,0.791,3695.4,3694.6,4.35331]
[1717986458565,0.10579031,3695.3,3694.6,4.35331]
[1717986458766,3.1076,3695.5,3694.7,1.488281]
[1717986458986,0.10578256,3695.4,3694.7,1.488281]
[1717986461314,0.791,3695.3,3694.7,1.488281]
[1717986461519,0.791,3695.3,3694.8,2.2743]
[1717986461687,1.35299,3695.6,3694.8,5.2743]
[1717986462029,0.791,3695.5,3694.8,5.2743]
[1717986462326,0.89685051,3695.5,3694.8,5.2743]
[1717986462623,0.10585051,3695.5,3694.8,5.2743]
[1717986462824,0.791,3695.4,3694.8,5.2743]
[1717986463122,0.10585051,3695.5,3694.8,6.1649891]
[1717986463320,0.10549058,3695.3,3694.8,6.1649891]
[1717986463519,0.10577166,3695.4,3694.8,6.1649891]
[1717986463683,0.10567209,3695.2,3694.8,6.1649891]
[1717986463889,0.10572188,3695.3,3694.9,0.90065801]
[1717986464089,1.35299,3695.6,3694.9,3.95478205]
[1717986464090,0.10562231,3695.1,3694.9,3.95478205]
[1717986464300,1.41619703,3695.8,3695.1,2.2743]
[1717986464625,0.1058786,3695.7,3695.1,2.2743]
[1717986464843,0.1058786,3695.7,3695.1,3.1062108]
[1717986465121,2.14385,3695.9,3695.1,3.1062108]
[1717986465319,0.10582882,3695.6,3695.1,3.1062108]
[1717986465520,2.14385,3695.9,3695.1,3.1062108]
[1717986465720,0.10577905,3695.5,3695.1,3.1062108]
[1717986465921,2.14385,3695.9,3695.2,0.74593608]
[1717986466122,0.10572927,3695.4,3695.1,2.2743]
[1717986466314,2.14385,3695.9,3695.1,2.2743]
[1717986466828,0.10592837,3695.8,3695.1,2.2743]
[1717986468428,0.89692837,3695.8,3695.1,2.2743]
[1717986469024,0.791,3695.6,3695.0,1.35315]
[1717986469402,0.10578081,3695.5,3695.0,1.35315]
[1717986471303,0.791,3695.6,3695.0,1.73391087]
[1717986471525,0.10573103,3695.4,3695.0,1.73391087]
[1717986471706,0.10578081,3695.5,3695.0,1.73391087]
[1717986471907,0.10568125,3695.3,3695.0,1.73391087]
[1717986472230,0.10563146,3695.2,3695.0,1.73391087]
[1717986472731,0.791,3695.6,3695.0,1.73391087]
[1717986473028,0.791,3695.6,3695.0,1.35315]
[1717986473029,0.10578081,3695.5,3695.0,1.35315]
[1717986476728,0.10578081,3695.5,3694.8,3.0]
[1717986476729,0.791,3695.4,3694.8,3.0]
[1717986476933,0.791,3695.4,3694.7,4.35327]
[1717986477110,0.10571456,3695.3,3694.7,4.35327]
[1717986478241,0.10571456,3695.3,3694.7,5.746987]
[1717986478598,2.14402,3695.5,3694.7,5.746987]
[1717986478830,0.10567616,3695.4,3694.7,5.746987]
[1717986486541,0.10567616,3695.4,3694.9,35.0]
[1717986486743,0.10567616,3695.4,3695.0,3.0]
[1717986487241,3.56244853,3695.5,3695.0,3.0]
[1717986488746,2.3137,3695.4,3695.0,3.0]
[1717986489844,2.3137,3695.4,3694.8,3.0]
[1717986490147,0.10563672,3695.3,3694.9,35.0]
[1717986490348,0.10563672,3695.3,3695.0,3.0]
[1717986490643,2.14407,3695.3,3695.0,3.0]
[1717986490845,2.14407,3695.3,3694.5,3.0]
[1717986491144,2.14407,3695.3,3694.6,35.0]
[1717986491145,0.10558694,3695.2,3694.6,35.0]
[1717986491351,3.56249853,3695.3,3694.7,3.0]
[1717986491851,0.10558694,3695.2,3694.5,3.0]
[1717986492055,0.10558694,3695.2,3694.8,35.0]
[1717986492263,0.10558694,3695.2,3694.9,3.0]
[1717986492432,2.14407,3695.3,3694.9,3.0]
[1717986492951,3.56249853,3695.3,3694.9,3.0]
[1717986493375,2.14407,3695.3,3694.9,3.0]
[1717986494218,3.56249853,3695.3,3694.4,8.63338]
[1717986494419,1.52401547,3695.2,3694.5,3.0]
[1717986494950,0.10558694,3695.2,3694.6,35.0]
[1717986495252,3.56249853,3695.3,3694.7,3.0]
[1717986495444,2.77149853,3695.3,3694.7,3.0]
[1717986495650,0.791,3695.2,3694.5,3.0]
[1717986495955,0.89652637,3695.2,3694.6,35.0]
[1717986496253,0.791,3695.2,3694.7,3.0]
[1717986496650,0.791,3695.2,3694.5,3.0]
[1717986496854,0.791,3695.2,3694.6,35.0]
[1717986496855,0.10547658,3695.1,3694.6,35.0]
[1717986497052,0.10547658,3695.1,3694.7,3.0]
[1717986497257,0.791,3695.2,3694.7,3.0]
[1717986497422,0.791,3695.2,3694.5,3.0]
[1717986497622,0.10547658,3695.1,3694.5,3.0]
[1717986497958,0.10547658,3695.1,3694.8,35.0]
[1717986498467,0.791,3695.2,3694.8,35.0]
[1717986500449,2.77149853,3695.3,3694.8,35.0]
[1717986500639,0.791,3695.2,3694.8,35.0]
[1717986515575,3.5620554,3695.3,3694.8,35.0]
[1717986515868,2.14407,3695.3,3694.8,35.0]
[1717986516373,3.5620554,3695.3,3694.8,35.0]
[1717986516571,2.14407,3695.3,3694.8,35.0]
[1717986516874,3.5620554,3695.3,3694.8,35.0]
[1717986517485,2.14407,3695.3,3694.8,35.0]
[1717986518062,3.5623581,3695.3,3694.8,35.0]
[1717986519558,1.35307,3695.3,3694.8,35.0]
[1717986519873,2.14407,3695.3,3694.8,35.0]
[1717986521886,3.5623581,3695.3,3694.8,35.0]
[1717986522090,2.14407,3695.3,3694.8,35.0]
[1717986523401,3.5623581,3695.3,3694.8,35.0]
[1717986524287,2.14407,3695.3,3694.8,35.0]
[1717986524451,3.5623581,3695.3,3694.8,35.0]
[1717986531195,3.56297333,3695.3,3694.8,35.0]
[1717986533198,0.791,3694.9,3694.8,35.0]
[1717986533381,3.1966,3694.9,3694.8,35.0]
[1717986533698,4.61550333,3694.9,3694.8,35.0]
[1717986534006,4.72111034,3694.9,3694.8,35.0]
[1717986534517,2.4056,3694.7,3694.4,7.28]
[1717986534809,0.791,3694.5,3694.4,7.28]
[1717986535174,0.89626549,3694.5,3694.4,7.28]
[1717986535409,0.10526549,3694.5,3694.4,42.28]
[1717986535588,0.89626549,3694.5,3694.4,42.28]
[1717986535789,0.791,3694.5,3694.4,42.28]
[1717986537324,2.4056,3694.7,3694.4,42.28]
[1717986537609,3.1966,3694.7,3694.4,42.28]
[1717986538228,2.4056,3694.7,3694.4,42.28]
[1717986538691,2.4056,3694.7,3694.4,35.0]
[1717986540419,1.35327,3694.8,3694.4,35.0]
[1717986540914,0.10524819,3694.7,3694.4,35.0]
[1717986541115,1.35327,3694.8,3694.4,35.0]
[1717986541307,0.1051984,3694.6,3694.4,35.0]
[1717986541510,1.35327,3694.8,3694.4,35.0]
[1717986542022,0.10524819,3694.7,3694.4,35.0]
[1717986542439,1.35327,3694.8,3694.4,35.0]
[1717986543425,1.35327,3694.8,3694.2,2.3165]
[1717986543812,0.10524819,3694.7,3694.2,2.3165]
[1717986544014,0.10524819,3694.7,3694.3,35.0]
[1717986544530,1.35327,3694.8,3694.3,35.0]
[1717986550198,1.35327,3694.8,3694.4,3.33125441]
[1717986550541,1.70024764,3695.4,3694.4,3.33125441]
[1717986550542,1.35315,3695.1,3694.4,3.33125441]
[1717986550700,1.35315,3695.1,3694.4,2.2896]
[1717986550901,0.10533095,3695.0,3694.5,35.0]
[1717986551139,1.35315,3695.1,3694.5,35.0]
[1717986563814,3.79715,3695.1,3694.5,35.0]
[1717986569546,4.58815,3695.1,3694.5,35.0]
[1717986569754,2.3073,3694.8,3694.5,35.0]
[1717986570047,2.3073,3694.8,3694.2,1.35344]
[1717986570462,0.10540718,3694.7,3694.2,1.35344]
[1717986570645,0.10540718,3694.7,3694.3,35.0]
[1717986571016,2.3073,3694.8,3694.3,35.0]
[1717986579632,3.72417303,3694.8,3694.3,35.0]
[1717986579930,2.3073,3694.8,3694.3,35.0]
[1717986582369,1.35329,3694.7,3694.3,35.0]
[1717986591869,1.35338,3694.5,3694.3,35.0]
[1717986605380,1.35338,3694.5,3694.0,3.0]
[1717986605785,1.35338,3694.5,3693.9,5.4707]
[1717986605996,1.35338,3694.5,3694.1,35.0]
[1717986606283,1.35338,3694.5,3694.2,3.0]
[1717986609392,1.35347,3694.2,3694.0,3.0]
[1717986609588,1.35347,3694.2,3694.1,35.0]
[1717986609793,1.35347,3694.2,3694.1,38.0]
[1717986626415,1.35347,3694.2,3694.1,35.0]
[1717986626880,2.77200906,3694.2,3694.1,35.0]
[1717986627075,1.35347,3694.2,3694.1,35.0]
[1717986627473,1.35358,3693.9,3693.6,7.28]
[1717986627895,0.10478008,3693.8,3693.6,7.28]
[1717986628103,0.10478008,3693.8,3693.7,35.0]
[1717986628481,1.35358,3693.9,3693.7,35.0]
[1717986635414,1.35358,3693.9,3693.3,3.0]
[1717986635602,1.35365,3693.7,3693.3,3.0]
[1717986635914,0.10468043,3693.6,3693.4,35.0]
[1717986636421,1.35365,3693.7,3693.4,35.0]
[1717986636888,2.3645,3694.0,3693.4,35.0]
[1717986645435,1.35351,3694.1,3693.4,35.0]
[1717986645601,3.1729,3694.0,3693.4,35.0]
[1717986645996,1.35358,3693.9,3693.4,35.0]
[1717986650211,0.791,3694.0,3693.4,35.0]
[1717986650517,0.791,3694.0,3693.5,2.4256]
[1717986650718,0.35632133,3694.1,3693.5,2.4256]
[1717986651044,0.1023688,3694.0,3693.5,2.4256]
[1717986651209,0.1023688,3694.0,3693.6,35.0]
[1717986651411,0.35632133,3694.1,3693.6,35.0]
[1717986652232,1.35348,3694.2,3693.6,35.0]
[1717986654932,1.35348,3694.2,3693.6,36.35366]
[1717986656761,0.791,3694.3,3693.6,36.35366]
[1717986664454,2.20621751,3694.3,3693.6,36.35366]
[1717986664856,0.10251993,3694.2,3693.6,36.35366]
[1717986665227,2.20621751,3694.3,3693.6,36.35366]
[1717986665547,0.10251993,3694.2,3693.6,36.35366]
[1717986665950,2.20621751,3694.3,3693.6,36.35366]
[1717986666327,0.10251993,3694.2,3693.6,36.35366]
[1717986666861,2.20621751,3694.3,3693.6,36.35366]
[1717986667240,0.10251993,3694.2,3693.6,36.35366]
[1717986667435,2.20621751,3694.3,3693.6,36.35366]
[1717986667765,0.10251993,3694.2,3693.6,36.35366]
[1717986668130,2.20621751,3694.3,3693.6,36.35366]
[1717986668434,0.10251993,3694.2,3693.6,36.35366]
[1717986668641,2.20621751,3694.3,3693.6,36.35366]
[1717986668843,0.10251993,3694.2,3693.6,36.35366]
[1717986669168,1.41521751,3694.3,3693.9,2.4378]
[1717986669368,0.10251993,3694.2,3693.9,2.4378]
[1717986669846,0.10229744,3694.1,3693.9,37.4378]
[1717986670232,2.20621751,3694.4,3693.9,37.4378]
[1717986670433,0.10239706,3694.3,3693.9,37.4378]
[1717986670638,2.20621751,3694.4,3693.9,37.4378]
[1717986670843,0.10239706,3694.3,3693.9,37.4378]
[1717986671052,2.20621751,3694.4,3693.9,37.4378]
[1717986671551,0.10239706,3694.3,3693.9,37.4378]
[1717986671957,2.20621751,3694.4,3693.9,37.4378]
[1717986672349,1.51761457,3694.3,3693.9,37.4378]
[1717986673129,1.51761457,3694.3,3693.9,2.4378]
[1717986674231,0.10239706,3694.3,3693.9,2.4378]
[1717986676662,2.20621751,3694.4,3693.9,2.4378]
[1717986676869,1.5170589,3694.3,3693.9,2.4378]
[1717986677356,0.10184139,3694.3,3693.9,2.4378]
[1717986677759,2.20621751,3694.4,3693.9,2.4378]
[1717986678152,0.10161806,3694.3,3693.9,2.4378]
[1717986678549,2.20621751,3694.4,3693.9,2.4378]
[1717986678750,0.10156825,3694.2,3693.9,2.4378]
[1717986678961,1.51683557,3694.3,3693.9,2.4378]
[1717986679170,1.41521751,3694.3,3693.9,2.4378]
[1717986679471,0.791,3694.4,3693.9,2.4378]
[1717986679472,0.10156825,3694.2,3693.9,2.4378]
[1717986679833,1.41901691,3694.3,3693.9,2.4378]
[1717986680040,0.10156825,3694.2,3693.9,2.4378]
[1717986680372,2.21001691,3694.4,3693.9,2.4378]
[1717986680674,0.10161806,3694.3,3693.9,2.4378]
[1717986681840,1.52063497,3694.3,3693.9,2.4378]
[1717986682602,0.10161806,3694.3,3693.9,2.4378]
[1717986683862,0.10156825,3694.2,3693.9,2.4378]
[1717986684066,2.21001691,3694.4,3693.9,2.4378]
[1717986684376,0.10161806,3694.3,3693.9,2.4378]
[1717986684958,2.21001691,3694.4,3693.9,2.4378]
[1717986685280,0.10161806,3694.3,3693.9,2.4378]
[1717986687270,1.52063497,3694.3,3693.9,2.4378]
[1717986687772,0.10161806,3694.3,3693.9,2.4378]
[1717986688185,1.52063497,3694.3,3693.9,2.4378]
[1717986690096,0.10161806,3694.3,3693.9,2.4378]
[1717986690268,1.52063497,3694.3,3693.9,2.4378]
[1717986692261,1.52133498,3694.3,3693.9,2.4378]
[1717986699765,1.52151451,3694.3,3693.9,2.4378]
[1717986701699,1.52151451,3694.3,3693.8,35.0]
[1717986701888,0.10161806,3694.3,3693.8,35.0]
[1717986702065,1.41993985,3694.3,3693.8,35.0]
[1717986702263,1.5214687,3694.2,3693.8,35.0]
[1717986702463,1.41993985,3694.2,3693.8,35.0]
[1717986702703,2.21093985,3694.2,3693.8,35.0]
[1717986703810,0.791,3694.2,3693.8,35.0]
[1717986704215,2.21093985,3694.2,3693.8,35.0]
[1717986707214,2.21114171,3694.2,3693.8,35.0]
[1717986713573,1.42014171,3694.2,3693.8,35.0]
[1717986713773,0.10077188,3694.1,3693.8,35.0]
[1717986714168,1.42014171,3694.2,3693.8,35.0]
[1717986714371,1.42014171,3694.1,3693.8,35.0]
[1717986714605,1.52133895,3694.1,3693.8,35.0]
[1717986714792,1.42014171,3694.1,3693.8,35.0]
[1717986719414,1.42065963,3694.1,3693.8,35.0]
[1717986720385,1.42065963,3694.1,3693.9,2.3662]
[1717986720589,1.42065963,3694.2,3693.9,2.3662]
[1717986723498,1.42072021,3694.2,3694.0,2.4002]
[1717986723729,1.42072021,3694.2,3694.1,0.51898936]
[1717986723959,1.42072021,3694.3,3694.1,35.0]
[1717986729425,1.42072021,3694.3,3694.0,2.4002]
[1717986730051,1.42040574,3694.3,3694.0,37.4002]
[1717986732466,1.42040574,3694.4,3694.0,37.4002]
[1717986733831,1.42040574,3694.3,3694.0,37.4002]
[1717986734032,1.42040574,3694.4,3694.0,37.4002]
[1717986734756,1.42040574,3694.3,3694.0,37.4002]
[1717986736145,0.10099082,3694.2,3694.0,37.4002]
[1717986736443,1.42040574,3694.4,3694.0,37.4002]
[1717986736644,0.10104064,3694.3,3694.0,37.4002]
[1717986738446,0.10104064,3694.3,3694.0,2.4002]
[1717986742078,1.42040574,3694.4,3694.0,2.4002]
[1717986742251,0.09904731,3694.3,3694.0,2.4002]
[1717986742666,0.09904731,3694.3,3694.1,35.0]
[1717986746473,1.42027746,3694.5,3694.1,35.0]
[1717986746672,0.09909714,3694.4,3694.1,35.0]
[1717986748270,1.5193746,3694.4,3694.1,35.0]
[1717986750308,0.09909714,3694.4,3694.2,2.4816]
[1717986750508,1.42016589,3694.6,3694.4,2.4816]
[1717986750707,0.09921661,3694.5,3694.4,2.4816]
[1717986751006,0.09921661,3694.5,3694.4,37.4816]
[1717986751395,1.42016589,3694.8,3694.4,37.4816]
[1717986751919,0.09942172,3694.7,3694.4,37.4816]
[1717986752116,1.42016589,3694.8,3694.4,37.4816]
[1717986752298,0.09614442,3694.7,3694.4,37.4816]
[1717986752500,1.42016589,3694.8,3694.5,1.35336]
[1717986752700,0.09614442,3694.7,3694.5,1.35336]
[1717986752913,1.42016589,3694.8,3694.5,1.35336]
[1717986753112,0.09614442,3694.7,3694.5,1.35336]
[1717986753309,1.42016589,3694.9,3694.5,1.35336]
[1717986753522,0.09619422,3694.8,3694.5,1.35336]
[1717986753819,1.42016589,3694.9,3694.5,1.35336]
[1717986754182,0.09619422,3694.8,3694.5,1.35336]
[1717986754386,0.09619422,3694.8,3694.5,36.35336]
[1717986754597,2.21116589,3695.0,3694.5,36.35336]
[1717986755029,0.09633793,3694.9,3694.5,36.35336]
[1717986755408,2.21116589,3695.0,3694.5,36.35336]
[1717986755628,2.21116589,3695.0,3694.5,1.35336]
[1717986755825,0.09633793,3694.9,3694.5,1.35336]
[1717986756338,2.21116589,3695.0,3694.5,1.35336]
[1717986756631,0.09633793,3694.9,3694.5,1.35336]
[1717986756833,0.09633793,3694.9,3694.7,2.35]
[1717986757038,1.42016589,3695.1,3694.7,2.35]
[1717986758025,1.42016589,3695.1,3694.7,3.70326]
[1717986758252,2.21116589,3695.2,3694.7,3.70326]
[1717986758417,0.791,3695.2,3694.7,3.70326]
[1717986759520,0.09341812,3695.1,3694.7,3.70326]
[1717986759719,0.09341812,3695.1,3694.8,35.0]
[1717986759919,0.791,3695.2,3694.8,35.0]
[1717986762120,0.741,3695.2,3694.8,35.0]
[1717986762550,0.741,3695.2,3694.7,3.70326]
[1717986762853,0.09350318,3695.1,3694.7,3.70326]
[1717986763056,0.09350318,3695.1,3694.7,38.70326]
[1717986763420,0.741,3695.2,3694.7,38.70326]
[1717986764032,0.741,3695.2,3694.7,3.70326]
[1717986764454,0.09350318,3695.1,3694.7,3.70326]
[1717986764751,0.741,3695.2,3694.7,3.70326]
[1717986767850,0.09351637,3695.1,3694.7,3.70326]
[1717986768053,0.09351637,3695.1,3694.7,38.70326]
[1717986768562,0.741,3695.2,3694.7,38.70326]
[1717986771118,0.741,3695.2,3694.7,3.70326]
[1717986771324,0.09351637,3695.1,3694.7,3.70326]
[1717986771522,0.09351637,3695.1,3694.7,38.70326]
[1717986771747,0.741,3695.2,3694.7,38.70326]
[1717986774529,0.741,3695.2,3694.7,3.70326]
[1717986774726,0.09351637,3695.1,3694.7,3.70326]
[1717986775162,0.741,3695.2,3694.7,3.70326]
[1717986778256,0.09348904,3695.1,3694.7,3.70326]
[1717986778441,0.09348904,3695.1,3694.7,38.70326]
[1717986778842,0.741,3695.2,3694.7,38.70326]
[1717986780339,2.4187,3695.4,3694.9,1.35319]
[1717986780675,1.42016589,3695.6,3695.1,1.35313]
[1717986780883,0.791,3695.6,3695.1,1.35313]
[1717986781247,0.0937927,3695.5,3695.1,1.35313]
[1717986781570,0.791,3695.6,3695.1,1.35313]
[1717986781771,0.09375514,3695.5,3695.1,1.35313]
[1717986782348,2.3238,3695.7,3695.1,1.35313]
[1717986782539,0.791,3695.5,3695.1,1.35313]
[1717986782745,2.3238,3695.7,3695.1,1.35313]
[1717986783058,1.42016589,3695.9,3695.3,1.35303]
[1717986783253,0.791,3695.8,3695.3,1.35303]
[1717986783457,0.88507151,3695.8,3695.3,1.35303]
[1717986783668,0.791,3695.8,3695.3,1.35303]
[1717986785239,2.4161,3696.0,3695.3,1.35303]
[1717986785583,0.791,3695.7,3695.3,1.35303]
[1717986785879,0.09397195,3695.6,3695.4,35.0]
[1717986786243,0.791,3695.7,3695.4,35.0]
[1717986787375,0.791,3695.7,3695.3,1.35303]
[1717986787581,0.791,3695.5,3695.3,1.35303]
[1717986787889,0.09381966,3695.4,3695.3,1.35303]
[1717986790563,0.791,3695.5,3695.3,1.35303]
[1717986790763,0.09381966,3695.4,3695.3,1.35303]
[1717986791562,0.791,3695.5,3695.3,1.35303]
[1717986791897,0.09379329,3695.4,3695.0,1.35317]
[1717986793782,0.791,3695.3,3695.0,1.35317]
[1717986794088,0.09371194,3695.2,3694.8,3.0]
[1717986794285,0.09371194,3695.2,3694.6,1.35329]
[1717986794625,0.09371792,3695.1,3694.7,0.378489]
[1717986794837,1.26966833,3695.3,3694.7,0.378489]
[1717986795144,0.791,3695.2,3694.7,0.378489]
[1717986796683,0.09067308,3695.1,3694.7,0.378489]
[1717986797106,0.791,3695.2,3694.7,0.378489]
[1717986797310,0.791,3695.2,3694.6,4.35329]
[1717986797509,0.09067308,3695.1,3694.6,4.35329]
[1717986797835,0.791,3695.2,3694.6,4.35329]
[1717986798235,0.09057892,3695.1,3694.6,4.35329]
[1717986798440,0.791,3695.2,3694.6,4.35329]
[1717986798646,0.09052913,3695.0,3694.6,5.031779]
[1717986798926,0.09057892,3695.1,3694.6,5.031779]
[1717986799151,0.09047933,3694.9,3694.6,5.031779]
[1717986799428,2.06066833,3695.3,3694.6,5.031779]
[1717986799594,2.06066833,3695.3,3694.7,0.7463379]
[1717986799793,0.09062871,3695.2,3694.7,0.7463379]
[1717986809157,0.09062871,3695.2,3694.8,35.0]
[1717986809327,2.06066833,3695.3,3694.9,3.0]
[1717986812261,2.06066833,3695.3,3694.7,0.7463379]
[1717986812584,0.09070175,3695.2,3694.8,35.0]
[1717986812746,2.06066833,3695.3,3694.9,3.0]
[1717986815792,2.06066833,3695.3,3694.7,0.7463379]
[1717986816295,0.09070175,3695.2,3694.8,35.0]
[1717986816463,2.06066833,3695.3,3694.9,3.0]
[1717986818378,0.791,3695.1,3694.3,1.35342]
[1717986818576,2.2775,3694.8,3694.3,1.35342]
[1717986818883,2.2775,3694.8,3694.4,35.0]
[1717986834858,0.791,3694.7,3694.4,35.0]
[1717986837571,0.791,3694.7,3694.0,4.35353]
[1717986837748,0.791,3694.7,3694.0,1.35353]
[1717986838065,0.791,3694.7,3694.1,35.73785121]
[1717986838270,0.791,3694.7,3694.2,3.0]
[1717986838668,0.09047021,3694.6,3694.1,0.73785121]
[1717986839168,0.09047021,3694.6,3694.3,35.0]
[1717986839536,0.791,3694.7,3694.3,35.0]
[1717986839734,2.14431,3694.7,3694.3,35.0]
[1717986844370,2.3585,3694.6,3694.3,35.0]
[1717986845182,2.3585,3694.6,3693.9,3.0]
[1717986845541,0.09024121,3694.5,3694.0,35.0]
[1717986845874,2.3585,3694.6,3694.1,3.0]
[1717986846243,2.3585,3694.6,3693.9,3.0]
[1717986846443,0.09024121,3694.5,3694.0,36.479374]
[1717986846644,2.3585,3694.6,3694.1,3.0]
[1717986847170,0.09024121,3694.5,3694.0,1.479374]
[1717986847373,0.09024121,3694.5,3694.2,35.0]
[1717986847574,2.3585,3694.6,3694.3,3.0]
[1717986850784,0.09024121,3694.5,3694.0,1.479374]
[1717986850985,0.09024121,3694.5,3694.1,35.0]
[1717986851170,0.09024121,3694.5,3694.2,3.0]
[1717986851481,2.3585,3694.6,3694.2,3.0]
[1717986851676,2.3585,3694.6,3693.9,3.0]
[1717986851886,0.09024121,3694.5,3694.0,35.0]
[1717986852076,2.3585,3694.6,3694.1,3.0]
[1717986852583,2.3585,3694.6,3693.9,4.479374]
[1717986852772,0.09024121,3694.5,3694.0,35.0]
[1717986852973,0.791,3694.5,3694.0,35.0]
[1717986856403,2.4267,3694.4,3694.0,35.0]
[1717986873204,3.56447498,3694.5,3694.0,35.0]
[1717986875842,1.42008498,3694.5,3694.0,38.90427292]
[1717986876004,1.42008498,3694.5,3694.1,2.4361]
[1717986876536,1.42033846,3694.5,3694.1,2.4361]
[1717986876839,0.08988029,3694.4,3694.2,35.0]
[1717986877015,0.08988029,3694.4,3694.2,37.4787394]
[1717986877217,1.42033846,3694.5,3694.2,37.4787394]
[1717986880332,1.42048889,3694.5,3694.2,37.4787394]
[1717986891379,1.42048889,3694.5,3694.2,35.0]
[1717986894297,1.42048889,3694.4,3694.2,35.0]
[1717986898178,1.42113372,3694.4,3694.2,35.0]
[1717986898605,0.08983962,3694.3,3694.2,35.0]
[1717986898769,1.42113372,3694.4,3694.0,1.35354]
[1717986898970,1.42113372,3694.4,3694.0,4.35354]
[1717986899193,0.08983962,3694.3,3694.0,4.35354]
[1717986899380,0.08983962,3694.3,3694.1,35.0]
[1717986899703,1.42113372,3694.4,3694.1,35.0]
[1717986903807,1.42115179,3694.4,3694.1,35.0]
[1717986910932,1.42125612,3694.4,3694.1,35.0]
[1717986911962,1.42125909,3694.4,3694.1,35.0]
[1717986912168,2.2717,3694.3,3694.1,35.0]
[1717986913315,3.69295909,3694.3,3694.1,35.0]
[1717986918521,3.69295909,3694.3,3694.0,3.0]
[1717986918726,0.08975724,3694.2,3693.7,1.35365]
[1717986918924,0.08975724,3694.2,3693.8,35.0]
[1717986919125,3.69295909,3694.3,3693.9,3.0]
[1717986919557,1.42125909,3694.3,3693.9,3.0]
[1717986921256,1.42125909,3694.3,3693.7,1.35365]
[1717986921561,0.08975724,3694.2,3693.8,35.0]
[1717986921768,0.08975724,3694.2,3693.9,3.0]
[1717986922061,1.42125909,3694.3,3693.9,3.0]
[1717986922263,1.42125909,3694.3,3693.7,1.35365]
[1717986922566,0.08975724,3694.2,3693.8,35.0]
[1717986922762,0.08975724,3694.2,3693.9,3.0]
[1717986922967,1.42125909,3694.3,3693.9,3.0]
[1717986923193,1.42125909,3694.3,3693.7,1.35365]
[1717986923325,0.08975724,3694.2,3693.8,35.0]
[1717986923526,1.42125909,3694.3,3693.9,3.0]
[1717986924039,1.42125909,3694.3,3693.7,1.35365]
[1717986924229,0.08975724,3694.2,3693.8,35.0]
[1717986924445,0.08975724,3694.2,3693.9,3.0]
[1717986924779,1.42125909,3694.3,3693.9,3.0]
[1717986925079,1.42125909,3694.3,3693.7,1.35365]
[1717986925377,0.08975724,3694.2,3693.8,35.0]
[1717986925578,0.08975724,3694.2,3693.9,3.0]
[1717986925784,1.42125909,3694.3,3693.9,3.0]
[1717986926081,1.42125909,3694.3,3693.7,1.35365]
[1717986926382,0.08976941,3694.2,3693.8,35.0]
[1717986926676,0.08976941,3694.2,3693.9,3.0]
[1717986926869,2.77467909,3694.4,3693.9,3.0]
[1717986927065,2.77467909,3694.4,3693.7,1.35365]
[1717986927245,0.08981921,3694.3,3693.8,35.0]
[1717986927446,0.08981921,3694.3,3693.9,3.0]
[1717986927647,2.77467909,3694.4,3693.9,3.0]
[1717986927846,2.77467909,3694.4,3693.7,1.35365]
[1717986928047,0.08981921,3694.3,3693.7,1.35365]
[1717986928273,0.08981921,3694.3,3693.8,35.0]
[1717986928455,0.08981921,3694.3,3693.9,3.0]
[1717986928655,2.77467909,3694.4,3693.9,3.0]
[1717986928877,2.77467909,3694.4,3693.7,1.35365]
[1717986929188,0.08981921,3694.3,3693.8,35.0]
[1717986929483,0.08981921,3694.3,3693.9,3.0]
[1717986929683,2.77467909,3694.4,3693.9,3.0]
[1717986929859,2.77467909,3694.4,3693.8,5.3]
[1717986930059,0.08981921,3694.3,3693.9,35.0]
[1717986930260,0.08981921,3694.3,3694.0,3.0]
[1717986930488,1.42125909,3694.4,3694.0,3.0]
[1717986930786,0.08981921,3694.3,3694.0,3.0]
[1717986930953,0.08981921,3694.3,3694.1,35.0]
[1717986931585,1.42125909,3694.4,3694.1,36.35347]
[1717986931787,1.42125909,3694.6,3694.1,41.32007545]
[1717986934281,1.42125909,3694.6,3694.1,6.32007545]
[1717986934487,1.42125909,3694.6,3694.3,1.3534]
[1717986934691,0.14085442,3694.5,3694.4,2.2527]
[1717986934995,1.42125909,3694.8,3694.4,2.2527]
[1717986935398,0.14108189,3694.7,3694.4,2.2527]
[1717986935572,0.14108189,3694.7,3694.5,35.0]
[1717986935774,1.42125909,3694.9,3694.5,35.0]
[1717986935988,1.42125909,3694.9,3694.5,1.35335]
[1717986936185,0.1411303,3694.8,3694.5,1.35335]
[1717986936698,1.42125909,3695.0,3694.5,1.35335]
[1717986937057,0.14117871,3694.9,3694.5,1.35335]
[1717986937495,1.42125909,3695.1,3694.5,1.35335]
[1717986938295,1.42125909,3695.2,3694.5,1.35335]
[1717986938859,1.42125909,3695.1,3694.5,1.35335]
[1717986939300,1.42125909,3695.2,3694.5,1.35335]
[1717986939591,2.21225909,3695.2,3694.5,1.35335]
[1717986939995,0.13753289,3695.1,3694.6,35.0]